[Event "*** Titled Tuesday Blitz"]
[Site "Chess.com"]
[Date "2021.03.09"]
[Round "11"]
[White "SimplyDevina"]
[Black "03revilo"]
[Result "1-0"]
[WhiteElo "2224"]
[BlackElo "2319"]
[TimeControl "180+1"]
[EndTime "12:09:57 PST"]
[Termination "SimplyDevina won on time"]

1. d4 {[%clk 0:03:00.9]} 1... d5 {[%clk 0:02:59.7]} 2. c4 {[%clk 0:03:00.7]}
2... e6 {[%clk 0:02:59.8]} 3. Nc3 {[%clk 0:03:01.1]} 3... Nf6 {[%clk 0:02:59.6]}
4. cxd5 {[%clk 0:03:01.2]} 4... exd5 {[%clk 0:03:00.2]} 5. Bg5 {[%clk
0:03:01.8]} 5... c6 {[%clk 0:02:59.3]} 6. e3 {[%clk 0:03:02.3]} 6... Bd6 {[%clk
0:02:58.5]} 7. Bd3 {[%clk 0:03:02.9]} 7... O-O {[%clk 0:02:57.5]} 8. Qc2 {[%clk
0:03:03.4]} 8... h6 {[%clk 0:02:56.9]} 9. Bh4 {[%clk 0:03:01.5]} 9... Re8 {[%clk
0:02:56.9]} 10. Nge2 {[%clk 0:03:00.7]} 10... a5 {[%clk 0:02:55.8]} 11. Bg3
{[%clk 0:02:35.2]} 11... Na6 {[%clk 0:02:52.7]} 12. a3 {[%clk 0:02:32.9]} 12...
Nc7 {[%clk 0:02:48.8]} 13. O-O {[%clk 0:02:23.4]} 13... Ne6 {[%clk 0:02:31.5]}
14. Rab1 {[%clk 0:02:11.1]} 14... Ng5 {[%clk 0:02:09.6]} 15. b4 {[%clk
0:01:51.9]} 15... axb4 {[%clk 0:02:10.5]} 16. axb4 {[%clk 0:01:52.3]} 16... Bg4
{[%clk 0:01:33.8]} 17. f3 {[%clk 0:01:32.7]} 17... Bxg3 {[%clk 0:01:17.3]} 18.
Nxg3 {[%clk 0:01:33.6]} 18... Bd7 {[%clk 0:01:14.6]} 19. Rfe1 {[%clk 0:01:16.9]}
19... h5 {[%clk 0:01:13.3]} 20. b5 {[%clk 0:00:54.3]} 20... h4 {[%clk
0:01:11.9]} 21. Nf5 {[%clk 0:00:53]} 21... h3 {[%clk 0:00:44]} 22. bxc6 {[%clk
0:00:36.7]} 22... bxc6 {[%clk 0:00:40.2]} 23. Nd6 {[%clk 0:00:14.8]} 23... Re6
{[%clk 0:00:34.3]} 24. Nb7 {[%clk 0:00:14.4]} 24... Qe7 {[%clk 0:00:31.8]} 25.
e4 {[%clk 0:00:05.6]} 25... dxe4 {[%clk 0:00:28.2]} 26. fxe4 {[%clk 0:00:02.6]}
26... Ra3 {[%clk 0:00:15.7]} 27. Nc5 {[%clk 0:00:02.1]} 27... Rd6 {[%clk
0:00:10.2]} 28. e5 {[%clk 0:00:02.4]} 28... Rxd4 {[%clk 0:00:09.6]} 29. Rb8+
{[%clk 0:00:02.6]} 29... Be8 {[%clk 0:00:06.6]} 30. Kf1 {[%clk 0:00:02]} 30...
hxg2+ {[%clk 0:00:04.8]} 31. Qxg2 {[%clk 0:00:02.9]} 31... Qxc5 {[%clk
0:00:02.7]} 32. exf6 {[%clk 0:00:03.2]} 32... Rf4+ {[%clk 0:00:01.3]} 33. Ke2
{[%clk 0:00:02.6]} 1-0

[Event "*** Titled Tuesday Blitz"]
[Site "Chess.com"]
[Date "2021.03.09"]
[Round "11"]
[White "yonaltimur"]
[Black "dhaessel"]
[Result "0-1"]
[WhiteElo "1799"]
[BlackElo "1969"]
[TimeControl "180+1"]
[EndTime "12:09:57 PST"]
[Termination "dhaessel won by checkmate"]

1. e4 {[%clk 0:03:00.9]} 1... e5 {[%clk 0:02:57.9]} 2. Nf3 {[%clk 0:02:58.3]}
2... Nc6 {[%clk 0:02:58.3]} 3. Bb5 {[%clk 0:02:55.8]} 3... Nf6 {[%clk 0:02:58]}
4. O-O {[%clk 0:02:54.5]} 4... Nxe4 {[%clk 0:02:57.2]} 5. Re1 {[%clk 0:02:52.9]}
5... Nd6 {[%clk 0:02:57.1]} 6. Bxc6 {[%clk 0:02:47.6]} 6... dxc6 {[%clk
0:02:58]} 7. Nxe5 {[%clk 0:02:44.6]} 7... Be7 {[%clk 0:02:57.8]} 8. d4 {[%clk
0:02:42]} 8... O-O {[%clk 0:02:57.7]} 9. c3 {[%clk 0:02:37.2]} 9... Ne8 {[%clk
0:02:50.5]} 10. Bf4 {[%clk 0:02:33.7]} 10... Be6 {[%clk 0:02:48.6]} 11. Nd2
{[%clk 0:02:31.4]} 11... c5 {[%clk 0:02:44.3]} 12. Ndf3 {[%clk 0:02:29.5]} 12...
Bd6 {[%clk 0:02:11.5]} 13. Bg3 {[%clk 0:02:20.2]} 13... Nf6 {[%clk 0:01:56.3]}
14. c4 {[%clk 0:02:05.4]} 14... cxd4 {[%clk 0:01:51.9]} 15. Nxd4 {[%clk
0:01:58]} 15... Bxe5 {[%clk 0:01:32.7]} 16. Nxe6 {[%clk 0:01:56.2]} 16... Qxd1
{[%clk 0:01:29.8]} 17. Raxd1 {[%clk 0:01:53.7]} 17... Bxg3 {[%clk 0:01:25.4]}
18. Nxf8 {[%clk 0:01:50.2]} 18... Bd6 {[%clk 0:01:23.3]} 19. Nxh7 {[%clk
0:01:26.2]} 19... Kxh7 {[%clk 0:01:19]} 20. h3 {[%clk 0:01:26.4]} 20... Kg6
{[%clk 0:01:13.9]} 21. a3 {[%clk 0:01:25.2]} 21... a5 {[%clk 0:01:10.6]} 22. g3
{[%clk 0:01:18.1]} 22... a4 {[%clk 0:01:07.8]} 23. f4 {[%clk 0:01:16.5]} 23...
Ra6 {[%clk 0:01:01.9]} 24. Kg2 {[%clk 0:01:12.8]} 24... Rb6 {[%clk 0:01:01.5]}
25. Re2 {[%clk 0:01:10.7]} 25... Rb3 {[%clk 0:00:58.7]} 26. Rf1 {[%clk
0:01:02.8]} 26... Nh5 {[%clk 0:00:43.3]} 27. Rf3 {[%clk 0:01:00.7]} 27... Rb6
{[%clk 0:00:41.1]} 28. Kf2 {[%clk 0:00:31.6]} 28... Bc5+ {[%clk 0:00:39.6]} 29.
Kg2 {[%clk 0:00:29.4]} 29... Bd4 {[%clk 0:00:35.4]} 30. g4 {[%clk 0:00:28.2]}
30... Nf6 {[%clk 0:00:33.9]} 31. Rd3 {[%clk 0:00:23.5]} 31... Bxb2 {[%clk
0:00:31]} 32. Rd7 {[%clk 0:00:21.9]} 32... Bxa3 {[%clk 0:00:26.8]} 33. Rxc7
{[%clk 0:00:21.1]} 33... Bd6 {[%clk 0:00:24.3]} 34. Rc8 {[%clk 0:00:19.3]} 34...
Bxf4 {[%clk 0:00:23.6]} 35. Ra8 {[%clk 0:00:18.2]} 35... Rb3 {[%clk 0:00:20.8]}
36. Rxa4 {[%clk 0:00:15.6]} 36... Rg3+ {[%clk 0:00:20.5]} 37. Kf2 {[%clk
0:00:14]} 37... Rxh3 {[%clk 0:00:20.1]} 38. c5 {[%clk 0:00:10.2]} 38... Nxg4+
{[%clk 0:00:18.7]} 39. Ke1 {[%clk 0:00:08]} 39... Rh1# {[%clk 0:00:16.6]} 0-1

[Event "*** Titled Tuesday Blitz"]
[Site "Chess.com"]
[Date "2021.03.09"]
[Round "11"]
[White "chessdjw"]
[Black "Fandorine"]
[Result "1-0"]
[WhiteElo "2765"]
[BlackElo "2885"]
[TimeControl "180+1"]
[EndTime "12:09:59 PST"]
[Termination "chessdjw won by resignation"]

1. e4 {[%clk 0:03:00.9]} 1... c5 {[%clk 0:02:59.9]} 2. Nf3 {[%clk 0:03:01.4]}
2... d6 {[%clk 0:03:00.3]} 3. Bb5+ {[%clk 0:03:01.1]} 3... Nd7 {[%clk
0:02:59.9]} 4. a4 {[%clk 0:02:59.1]} 4... Nf6 {[%clk 0:02:59.1]} 5. Nc3 {[%clk
0:02:58.5]} 5... a6 {[%clk 0:02:57.7]} 6. Be2 {[%clk 0:02:58.5]} 6... b6 {[%clk
0:02:57.9]} 7. d4 {[%clk 0:02:58.7]} 7... cxd4 {[%clk 0:02:58.2]} 8. Qxd4 {[%clk
0:02:59.3]} 8... Bb7 {[%clk 0:02:58.6]} 9. O-O {[%clk 0:02:54.9]} 9... e6 {[%clk
0:02:58.5]} 10. Rd1 {[%clk 0:02:54.3]} 10... Be7 {[%clk 0:02:55.8]} 11. Nd2
{[%clk 0:02:53.9]} 11... Ne5 {[%clk 0:02:37]} 12. Nc4 {[%clk 0:02:41.7]} 12...
Nxc4 {[%clk 0:02:34.6]} 13. Bxc4 {[%clk 0:02:42.6]} 13... O-O {[%clk 0:02:26.3]}
14. e5 {[%clk 0:02:26.9]} 14... dxe5 {[%clk 0:02:24]} 15. Qxe5 {[%clk
0:02:27.2]} 15... Qc8 {[%clk 0:02:16.7]} 16. Be2 {[%clk 0:02:16.9]} 16... Qc5
{[%clk 0:02:01.5]} 17. Qg3 {[%clk 0:02:00]} 17... Rfd8 {[%clk 0:01:51.6]} 18.
Be3 {[%clk 0:01:59.5]} 18... Qb4 {[%clk 0:01:49.6]} 19. Qc7 {[%clk 0:01:52.7]}
19... Bd5 {[%clk 0:01:16.2]} 20. Qxb6 {[%clk 0:01:26.9]} 20... Qh4 {[%clk
0:01:07]} 21. Rd4 {[%clk 0:01:07.4]} 21... Ne4 {[%clk 0:01:07.1]} 22. Nxe4
{[%clk 0:00:44.6]} 22... Bxe4 {[%clk 0:01:08]} 23. Rad1 {[%clk 0:00:22.4]} 23...
Rdb8 {[%clk 0:00:40.9]} 24. Qc7 {[%clk 0:00:21.5]} 24... Bf6 {[%clk 0:00:32.7]}
25. g3 {[%clk 0:00:14.1]} 25... Bxd4 {[%clk 0:00:20.9]} 26. gxh4 {[%clk
0:00:14.5]} 26... Bxe3 {[%clk 0:00:18.8]} 27. fxe3 {[%clk 0:00:15.4]} 27... Rc8
{[%clk 0:00:16.6]} 28. Qf4 {[%clk 0:00:13.7]} 28... Bxc2 {[%clk 0:00:12.2]} 29.
Rd7 {[%clk 0:00:14.2]} 29... Rf8 {[%clk 0:00:07.4]} 30. a5 {[%clk 0:00:14.7]}
30... h6 {[%clk 0:00:07.1]} 31. b4 {[%clk 0:00:15]} 31... Bg6 {[%clk 0:00:03]}
32. h5 {[%clk 0:00:14.6]} 32... Bf5 {[%clk 0:00:03.6]} 33. Kf2 {[%clk
0:00:14.9]} 33... Rac8 {[%clk 0:00:03.4]} 34. e4 {[%clk 0:00:14.9]} 34... Bh7
{[%clk 0:00:04]} 35. Bxa6 {[%clk 0:00:14.6]} 35... Rc2+ {[%clk 0:00:04.1]} 36.
Be2 {[%clk 0:00:15]} 36... e5 {[%clk 0:00:04.2]} 37. Qxe5 {[%clk 0:00:14.6]}
37... f6 {[%clk 0:00:02.6]} 38. Qe7 {[%clk 0:00:14.2]} 1-0

[Event "*** Titled Tuesday Blitz"]
[Site "Chess.com"]
[Date "2021.03.09"]
[Round "11"]
[White "eljanov"]
[Black "Szparu"]
[Result "1-0"]
[WhiteElo "2844"]
[BlackElo "2652"]
[TimeControl "180+1"]
[EndTime "12:09:59 PST"]
[Termination "eljanov won on time"]

1. e4 {[%clk 0:03:00.9]} 1... c5 {[%clk 0:02:59.5]} 2. Nf3 {[%clk 0:03:01.2]}
2... Nc6 {[%clk 0:02:59.5]} 3. Bb5 {[%clk 0:03:01.1]} 3... g6 {[%clk 0:02:59.6]}
4. Bxc6 {[%clk 0:03:01.3]} 4... dxc6 {[%clk 0:02:59.3]} 5. d3 {[%clk 0:03:01.1]}
5... Bg7 {[%clk 0:02:59.7]} 6. h3 {[%clk 0:03:01.6]} 6... Nf6 {[%clk 0:02:59.3]}
7. Nc3 {[%clk 0:03:01.4]} 7... Nd7 {[%clk 0:02:58.7]} 8. a4 {[%clk 0:03:00.2]}
8... a5 {[%clk 0:02:49.7]} 9. Be3 {[%clk 0:02:57.5]} 9... e5 {[%clk 0:02:37.9]}
10. Nd2 {[%clk 0:02:57.5]} 10... b6 {[%clk 0:02:31.8]} 11. Nc4 {[%clk 0:02:56]}
11... Nf8 {[%clk 0:02:30.5]} 12. Qd2 {[%clk 0:02:44.7]} 12... Ba6 {[%clk
0:02:20.4]} 13. b3 {[%clk 0:02:39.5]} 13... Ne6 {[%clk 0:02:14.6]} 14. Bh6
{[%clk 0:02:39.1]} 14... Bf6 {[%clk 0:01:54.7]} 15. O-O {[%clk 0:02:37.1]} 15...
g5 {[%clk 0:01:51.7]} 16. Ne3 {[%clk 0:02:32.2]} 16... Rg8 {[%clk 0:01:50.9]}
17. Ng4 {[%clk 0:02:32.3]} 17... Rg6 {[%clk 0:01:47.2]} 18. Ne2 {[%clk 0:02:29]}
18... Bh8 {[%clk 0:01:27.4]} 19. Ng3 {[%clk 0:02:28.5]} 19... Qc7 {[%clk
0:01:19.8]} 20. Nf5 {[%clk 0:02:28.7]} 20... O-O-O {[%clk 0:01:19]} 21. Qe3
{[%clk 0:02:19.9]} 21... Kb8 {[%clk 0:01:07.7]} 22. Rad1 {[%clk 0:02:08.8]}
22... Nf4 {[%clk 0:01:05.7]} 23. Kh2 {[%clk 0:02:04.3]} 23... Rd7 {[%clk
0:00:39.7]} 24. g3 {[%clk 0:02:03.9]} 24... Ne6 {[%clk 0:00:39.9]} 25. f3 {[%clk
0:02:00]} 25... Rg8 {[%clk 0:00:39.5]} 26. h4 {[%clk 0:01:54.8]} 26... f6 {[%clk
0:00:37.4]} 27. hxg5 {[%clk 0:01:52.1]} 27... fxg5 {[%clk 0:00:36.7]} 28. Rh1
{[%clk 0:01:52.3]} 28... Rg6 {[%clk 0:00:35]} 29. Kg2 {[%clk 0:01:51.6]} 29...
Bf6 {[%clk 0:00:32.4]} 30. Nxf6 {[%clk 0:01:49.1]} 30... Rxf6 {[%clk 0:00:31.8]}
31. Bxg5 {[%clk 0:01:49.4]} 31... Rg6 {[%clk 0:00:31.4]} 32. Bh6 {[%clk
0:01:45.5]} 32... Rf7 {[%clk 0:00:30.1]} 33. g4 {[%clk 0:01:45.2]} 33... Bc8
{[%clk 0:00:25.7]} 34. Rh5 {[%clk 0:01:44.7]} 34... Kb7 {[%clk 0:00:23.4]} 35.
Rdh1 {[%clk 0:01:44.5]} 35... Nd4 {[%clk 0:00:23.2]} 36. Nxd4 {[%clk 0:01:23]}
36... exd4 {[%clk 0:00:23.5]} 37. Qe2 {[%clk 0:01:23.7]} 37... Be6 {[%clk
0:00:18.8]} 38. Bd2 {[%clk 0:01:12.6]} 38... Qd7 {[%clk 0:00:18.4]} 39. g5
{[%clk 0:01:09.1]} 39... Rfg7 {[%clk 0:00:15.2]} 40. Kf1 {[%clk 0:01:08.2]}
40... Rf7 {[%clk 0:00:13]} 41. Ke1 {[%clk 0:01:08.2]} 41... b5 {[%clk
0:00:09.6]} 42. R5h4 {[%clk 0:00:53.5]} 42... Rg8 {[%clk 0:00:07.5]} 43. f4
{[%clk 0:00:53.4]} 43... Re7 {[%clk 0:00:06.6]} 44. Qh2 {[%clk 0:00:47.6]} 44...
Rgg7 {[%clk 0:00:05]} 45. Kd1 {[%clk 0:00:45.8]} 45... Bg8 {[%clk 0:00:03.7]}
46. f5 {[%clk 0:00:44.8]} 46... Re8 {[%clk 0:00:01.6]} 47. f6 {[%clk 0:00:43.5]}
47... Rg6 {[%clk 0:00:01.8]} 48. Rxh7 {[%clk 0:00:42.1]} 48... Bxh7 {[%clk
0:00:01.8]} 49. Qxh7 {[%clk 0:00:42.6]} 1-0

[Event "*** Titled Tuesday Blitz"]
[Site "Chess.com"]
[Date "2021.03.09"]
[Round "11"]
[White "politeplayer"]
[Black "FMOlexandrProhorov"]
[Result "1-0"]
[WhiteElo "2275"]
[BlackElo "2128"]
[TimeControl "180+1"]
[EndTime "12:10:00 PST"]
[Termination "politeplayer won by checkmate"]

1. e4 {[%clk 0:02:55.3]} 1... c5 {[%clk 0:02:59.5]} 2. d4 {[%clk 0:02:54]} 2...
cxd4 {[%clk 0:02:59.1]} 3. c3 {[%clk 0:02:49.6]} 3... Nc6 {[%clk 0:02:49.7]} 4.
cxd4 {[%clk 0:02:47.9]} 4... d5 {[%clk 0:02:50.1]} 5. exd5 {[%clk 0:02:46.1]}
5... Qxd5 {[%clk 0:02:49.7]} 6. Nf3 {[%clk 0:02:46.5]} 6... Nf6 {[%clk
0:02:46.7]} 7. Nc3 {[%clk 0:02:44.9]} 7... Qa5 {[%clk 0:02:44.8]} 8. d5 {[%clk
0:02:36.6]} 8... Nb8 {[%clk 0:02:37.8]} 9. Bb5+ {[%clk 0:02:18.2]} 9... Bd7
{[%clk 0:02:37.5]} 10. Bc4 {[%clk 0:02:16.7]} 10... g6 {[%clk 0:02:29.6]} 11.
O-O {[%clk 0:02:14.3]} 11... Bg7 {[%clk 0:02:29.8]} 12. Re1 {[%clk 0:02:10.8]}
12... Qc7 {[%clk 0:02:25.6]} 13. Nb5 {[%clk 0:01:59.6]} 13... Bxb5 {[%clk
0:01:53.6]} 14. Bxb5+ {[%clk 0:01:57.6]} 14... Kf8 {[%clk 0:01:50.7]} 15. d6
{[%clk 0:01:48.6]} 15... Qxd6 {[%clk 0:01:43.8]} 16. Bf4 {[%clk 0:01:47.9]}
16... Qb6 {[%clk 0:01:36.6]} 17. Qe2 {[%clk 0:01:23.3]} 17... Nd5 {[%clk
0:01:26.5]} 18. Be5 {[%clk 0:01:18.1]} 18... Nc6 {[%clk 0:01:17.5]} 19. Bxg7+
{[%clk 0:01:08.7]} 19... Kxg7 {[%clk 0:01:18.4]} 20. Rad1 {[%clk 0:01:01.4]}
20... e6 {[%clk 0:01:17.8]} 21. Bxc6 {[%clk 0:00:55.7]} 21... Qxc6 {[%clk
0:01:11.7]} 22. Qe5+ {[%clk 0:00:55.2]} 22... Kg8 {[%clk 0:00:43.3]} 23. Ng5
{[%clk 0:00:53.9]} 23... Qc7 {[%clk 0:00:31.1]} 24. Rxd5 {[%clk 0:00:51.1]}
24... Qxe5 {[%clk 0:00:27.9]} 25. Rdxe5 {[%clk 0:00:48.7]} 25... f6 {[%clk
0:00:28.3]} 26. Rxe6 {[%clk 0:00:44.6]} 26... fxg5 {[%clk 0:00:28.6]} 27. Re8+
{[%clk 0:00:37.8]} 27... Rxe8 {[%clk 0:00:28.1]} 28. Rxe8+ {[%clk 0:00:37.3]}
28... Kg7 {[%clk 0:00:29]} 29. Re7+ {[%clk 0:00:32.6]} 29... Kf6 {[%clk
0:00:29.2]} 30. Rxb7 {[%clk 0:00:32.1]} 30... Rc8 {[%clk 0:00:27.7]} 31. g3
{[%clk 0:00:29.6]} 31... Rc2 {[%clk 0:00:25.2]} 32. Rxh7 {[%clk 0:00:27.2]}
32... Rxb2 {[%clk 0:00:21]} 33. Rxa7 {[%clk 0:00:26.6]} 33... g4 {[%clk
0:00:20.2]} 34. Kg2 {[%clk 0:00:26.4]} 34... Kg5 {[%clk 0:00:20.7]} 35. a4
{[%clk 0:00:26]} 35... Ra2 {[%clk 0:00:20.4]} 36. a5 {[%clk 0:00:26.1]} 36...
Ra3 {[%clk 0:00:16.3]} 37. a6 {[%clk 0:00:26.1]} 37... Ra1 {[%clk 0:00:16.1]}
38. Ra8 {[%clk 0:00:26.3]} 38... Ra2 {[%clk 0:00:16.5]} 39. a7 {[%clk
0:00:26.6]} 39... Ra3 {[%clk 0:00:08.7]} 40. h4+ {[%clk 0:00:26.1]} 40... gxh3+
{[%clk 0:00:07.4]} 41. Kxh3 {[%clk 0:00:25.9]} 41... Ra4 {[%clk 0:00:02]} 42.
f4+ {[%clk 0:00:25.6]} 42... Kh5 {[%clk 0:00:01.8]} 43. Rh8# {[%clk 0:00:25.3]}
1-0

[Event "*** Titled Tuesday Blitz"]
[Site "Chess.com"]
[Date "2021.03.09"]
[Round "11"]
[White "Klavdia_Nik"]
[Black "AntonovaNadezhda"]
[Result "0-1"]
[WhiteElo "2020"]
[BlackElo "2137"]
[TimeControl "180+1"]
[EndTime "12:10:00 PST"]
[Termination "AntonovaNadezhda won on time"]

1. Nf3 {[%clk 0:02:59.9]} 1... Nf6 {[%clk 0:02:58.8]} 2. c4 {[%clk 0:02:56.5]}
2... g6 {[%clk 0:02:58.5]} 3. b3 {[%clk 0:02:56.6]} 3... Bg7 {[%clk 0:02:59]} 4.
Bb2 {[%clk 0:02:57.1]} 4... O-O {[%clk 0:02:55.4]} 5. g3 {[%clk 0:02:56.2]} 5...
d6 {[%clk 0:02:55.3]} 6. d4 {[%clk 0:02:55.3]} 6... b6 {[%clk 0:02:49.6]} 7. Bg2
{[%clk 0:02:54.1]} 7... Bb7 {[%clk 0:02:50.2]} 8. d5 {[%clk 0:02:50.9]} 8... c5
{[%clk 0:02:48.7]} 9. O-O {[%clk 0:02:20.6]} 9... a6 {[%clk 0:02:47.1]} 10. Nbd2
{[%clk 0:02:05]} 10... b5 {[%clk 0:02:45.2]} 11. e4 {[%clk 0:02:03.1]} 11...
Nbd7 {[%clk 0:02:43.5]} 12. Re1 {[%clk 0:01:58.2]} 12... Qc7 {[%clk 0:02:41.1]}
13. Qc2 {[%clk 0:01:52.9]} 13... b4 {[%clk 0:02:32.2]} 14. h3 {[%clk 0:01:49.4]}
14... a5 {[%clk 0:02:24.4]} 15. a4 {[%clk 0:01:03.4]} 15... bxa3 {[%clk
0:02:13.2]} 16. Rxa3 {[%clk 0:01:00.5]} 16... Ne8 {[%clk 0:02:08.1]} 17. Bxg7
{[%clk 0:00:48.6]} 17... Nxg7 {[%clk 0:02:06.2]} 18. Qc3 {[%clk 0:00:48.6]}
18... Ra7 {[%clk 0:01:44.5]} 19. g4 {[%clk 0:00:41.7]} 19... f6 {[%clk 0:01:39]}
20. Rea1 {[%clk 0:00:34.4]} 20... Rfa8 {[%clk 0:01:37.5]} 21. g5 {[%clk
0:00:27]} 21... Ne5 {[%clk 0:01:24.6]} 22. gxf6 {[%clk 0:00:15.8]} 22... exf6
{[%clk 0:01:23.3]} 23. Ne1 {[%clk 0:00:15.8]} 23... Nh5 {[%clk 0:01:12.2]} 24.
Qe3 {[%clk 0:00:14.5]} 24... g5 {[%clk 0:01:05.3]} 25. Bf1 {[%clk 0:00:10.3]}
25... Nf4 {[%clk 0:00:57.6]} 26. Ng2 {[%clk 0:00:09.1]} 26... Neg6 {[%clk
0:00:28.5]} 27. Nb1 {[%clk 0:00:06.6]} 27... Bc8 {[%clk 0:00:26.1]} 28. Kh2
{[%clk 0:00:02.8]} 28... Nxh3 {[%clk 0:00:15.8]} 29. Nc3 {[%clk 0:00:02.5]}
29... Bd7 {[%clk 0:00:12.7]} 30. Nb5 {[%clk 0:00:02.1]} 30... Bxb5 {[%clk
0:00:12]} 31. Qxh3 {[%clk 0:00:01.8]} 31... Bd7 {[%clk 0:00:10.1]} 32. Qe3
{[%clk 0:00:01.9]} 32... Bc8 {[%clk 0:00:07.4]} 0-1

[Event "*** Titled Tuesday Blitz"]
[Site "Chess.com"]
[Date "2021.03.09"]
[Round "11"]
[White "MrrRefrao"]
[Black "halldorgretar"]
[Result "0-1"]
[WhiteElo "2351"]
[BlackElo "2246"]
[TimeControl "180+1"]
[EndTime "12:10:02 PST"]
[Termination "halldorgretar won on time"]

1. e4 {[%clk 0:03:00.4]} 1... c5 {[%clk 0:01:48]} 2. Nf3 {[%clk 0:02:53.8]} 2...
Nc6 {[%clk 0:01:47.9]} 3. d4 {[%clk 0:02:54.7]} 3... cxd4 {[%clk 0:01:48]} 4.
Nxd4 {[%clk 0:02:55.6]} 4... Nf6 {[%clk 0:01:48.2]} 5. Nc3 {[%clk 0:02:56]} 5...
e5 {[%clk 0:01:48.8]} 6. Ndb5 {[%clk 0:02:56.5]} 6... d6 {[%clk 0:01:49.3]} 7.
Nd5 {[%clk 0:02:56.8]} 7... Nxd5 {[%clk 0:01:47.6]} 8. exd5 {[%clk 0:02:57.7]}
8... Nb8 {[%clk 0:01:47.9]} 9. c4 {[%clk 0:02:56.5]} 9... a6 {[%clk 0:01:43.5]}
10. Nc3 {[%clk 0:02:52.7]} 10... g6 {[%clk 0:01:42.9]} 11. Bd3 {[%clk
0:02:31.9]} 11... Bg7 {[%clk 0:01:42.8]} 12. Kf1 {[%clk 0:02:32.1]} 12... O-O
{[%clk 0:01:41.8]} 13. h4 {[%clk 0:02:11]} 13... f5 {[%clk 0:01:36.6]} 14. g3
{[%clk 0:02:11]} 14... e4 {[%clk 0:01:34.1]} 15. Be2 {[%clk 0:02:10.5]} 15...
Nd7 {[%clk 0:01:34.3]} 16. Kg2 {[%clk 0:02:08.3]} 16... Ne5 {[%clk 0:01:33.1]}
17. Be3 {[%clk 0:02:05.3]} 17... Bd7 {[%clk 0:01:29.1]} 18. c5 {[%clk
0:02:04.4]} 18... dxc5 {[%clk 0:01:25.4]} 19. Bxc5 {[%clk 0:01:58.5]} 19... Rf7
{[%clk 0:01:25.8]} 20. Be3 {[%clk 0:01:36.4]} 20... Rc8 {[%clk 0:01:25.6]} 21.
Rc1 {[%clk 0:01:20.9]} 21... b5 {[%clk 0:01:24.7]} 22. d6 {[%clk 0:01:07.7]}
22... Rc6 {[%clk 0:01:13.9]} 23. Qd5 {[%clk 0:00:57.9]} 23... Qf6 {[%clk
0:01:09.1]} 24. Rhd1 {[%clk 0:00:43.1]} 24... Be6 {[%clk 0:01:08.9]} 25. Qd4
{[%clk 0:00:41.7]} 25... Rd7 {[%clk 0:01:08.1]} 26. Bf4 {[%clk 0:00:36.3]} 26...
Bf7 {[%clk 0:00:54.6]} 27. Nd5 {[%clk 0:00:30.5]} 27... Qxd6 {[%clk 0:00:52.8]}
28. Rxc6 {[%clk 0:00:15.2]} 28... Qxc6 {[%clk 0:00:48.4]} 29. Bxe5 {[%clk
0:00:06.9]} 29... Rxd5 {[%clk 0:00:48]} 30. Bxg7 {[%clk 0:00:06]} 30... Rxd4
{[%clk 0:00:46.3]} 31. Bxd4 {[%clk 0:00:06.9]} 31... Qc2 {[%clk 0:00:45.3]} 32.
Re1 {[%clk 0:00:03.4]} 32... Bxa2 {[%clk 0:00:41.8]} 33. Be3 {[%clk 0:00:02.9]}
33... Qxb2 {[%clk 0:00:40]} 34. Bf1 {[%clk 0:00:02.2]} 34... Bc4 {[%clk
0:00:38.5]} 35. Rd1 {[%clk 0:00:01.5]} 35... Bxf1+ {[%clk 0:00:35.1]} 36. Kxf1
{[%clk 0:00:02.4]} 36... a5 {[%clk 0:00:33.8]} 37. Rd7 {[%clk 0:00:01.1]} 37...
a4 {[%clk 0:00:32.6]} 38. Bd4 {[%clk 0:00:02]} 38... Qc1+ {[%clk 0:00:29.8]} 39.
Kg2 {[%clk 0:00:02.9]} 39... Qd1 {[%clk 0:00:28.3]} 40. Rg7+ {[%clk 0:00:02.4]}
40... Kf8 {[%clk 0:00:27]} 41. Be5 {[%clk 0:00:03.3]} 41... Qf3+ {[%clk
0:00:25.5]} 42. Kg1 {[%clk 0:00:02.9]} 42... e3 {[%clk 0:00:25.2]} 0-1

[Event "*** Titled Tuesday Blitz"]
[Site "Chess.com"]
[Date "2021.03.09"]
[Round "11"]
[White "chesslh19"]
[Black "jordanasoul"]
[Result "1-0"]
[WhiteElo "2244"]
[BlackElo "2162"]
[TimeControl "180+1"]
[EndTime "12:10:04 PST"]
[Termination "chesslh19 won by checkmate"]

1. e4 {[%clk 0:02:58.9]} 1... c5 {[%clk 0:02:57.8]} 2. Nf3 {[%clk 0:02:59]} 2...
Nc6 {[%clk 0:02:56.8]} 3. d4 {[%clk 0:02:59.5]} 3... cxd4 {[%clk 0:02:57]} 4.
Nxd4 {[%clk 0:03:00.4]} 4... e5 {[%clk 0:02:57.6]} 5. Nb5 {[%clk 0:03:00.1]}
5... d6 {[%clk 0:02:58]} 6. N1c3 {[%clk 0:02:59.7]} 6... a6 {[%clk 0:02:57.5]}
7. Na3 {[%clk 0:02:59.9]} 7... b5 {[%clk 0:02:53.4]} 8. Nd5 {[%clk 0:03:00.1]}
8... Nge7 {[%clk 0:02:53.4]} 9. Bg5 {[%clk 0:02:58.4]} 9... h6 {[%clk
0:02:52.3]} 10. Qh5 {[%clk 0:02:57.8]} 10... Rb8 {[%clk 0:02:10.5]} 11. c3
{[%clk 0:02:50.1]} 11... b4 {[%clk 0:02:03.8]} 12. Nc4 {[%clk 0:02:31.9]} 12...
bxc3 {[%clk 0:01:43.2]} 13. bxc3 {[%clk 0:02:32.8]} 13... hxg5 {[%clk 0:01:28]}
14. Qxh8 {[%clk 0:02:31.6]} 14... Nxd5 {[%clk 0:01:27.5]} 15. exd5 {[%clk
0:02:31.4]} 15... Ne7 {[%clk 0:01:25.1]} 16. Bd3 {[%clk 0:01:48.2]} 16... Nxd5
{[%clk 0:01:22.3]} 17. h4 {[%clk 0:01:00.8]} 17... Nf4 {[%clk 0:01:19]} 18. Bf1
{[%clk 0:00:28.7]} 18... g4 {[%clk 0:01:07.4]} 19. h5 {[%clk 0:00:25]} 19... Be6
{[%clk 0:01:03.7]} 20. g3 {[%clk 0:00:20.8]} 20... Nd5 {[%clk 0:00:48.7]} 21.
Be2 {[%clk 0:00:17.6]} 21... Nxc3 {[%clk 0:00:46.3]} 22. Ne3 {[%clk 0:00:12.9]}
22... Nxe2 {[%clk 0:00:45.7]} 23. Kxe2 {[%clk 0:00:13.6]} 23... Rb2+ {[%clk
0:00:43.4]} 24. Kf1 {[%clk 0:00:13.9]} 24... d5 {[%clk 0:00:41.6]} 25. Kg2
{[%clk 0:00:12.5]} 25... d4 {[%clk 0:00:41.1]} 26. Nd1 {[%clk 0:00:09.6]} 26...
Bd5+ {[%clk 0:00:36.2]} 27. Kh2 {[%clk 0:00:09.2]} 27... Rd2 {[%clk 0:00:31.7]}
28. Re1 {[%clk 0:00:09.2]} 28... Qf6 {[%clk 0:00:30.2]} 29. Rf1 {[%clk
0:00:04.5]} 29... Bc4 {[%clk 0:00:27.5]} 30. Ne3 {[%clk 0:00:03.1]} 30... Bxf1
{[%clk 0:00:26]} 31. Rxf1 {[%clk 0:00:01.9]} 31... Rxf2+ {[%clk 0:00:25.9]} 32.
Rxf2 {[%clk 0:00:01.7]} 32... Qxf2+ {[%clk 0:00:25.5]} 33. Ng2 {[%clk
0:00:02.3]} 33... d3 {[%clk 0:00:24.6]} 34. h6 {[%clk 0:00:02.8]} 34... gxh6
{[%clk 0:00:23.7]} 35. Qxe5+ {[%clk 0:00:03.7]} 35... Be7 {[%clk 0:00:22.2]} 36.
Qb8+ {[%clk 0:00:03.1]} 36... Bd8 {[%clk 0:00:20.1]} 37. Qe5+ {[%clk 0:00:03.1]}
37... Kf8 {[%clk 0:00:19.6]} 38. Qd6+ {[%clk 0:00:03.2]} 38... Be7 {[%clk
0:00:19]} 39. Qxd3 {[%clk 0:00:03.1]} 39... h5 {[%clk 0:00:17.7]} 40. Qh7 {[%clk
0:00:02.7]} 40... Qc5 {[%clk 0:00:15.7]} 41. Qh8# {[%clk 0:00:02.3]} 1-0